[Event "Djerba Festival Blitz 2025"]
[Site "Djerba"]
[Date "2025.02.21"]
[Round "1.37"]
[White "Chelly, Yahya"]
[Black "Baba, Jihed"]
[Result "1-0"]
[ECO "E52"]
[WhiteElo "2106"]
[BlackElo "1669"]
[PlyCount "89"]
[EventDate "2025.02.15"]
[EventType "swiss"]
[EventCountry "TUN"]
[TimeControl "180+3"]

1. d4 {[%emt 0:00:05]} Nf6 {[%emt 0:00:02]} 2. c4 {[%emt 0:00:02]} e6 {[%emt 0:00:02]} 3. Nc3 {[%emt 0:00:03]} Bb4 {[%emt 0:00:02]} 4. e3 {[%emt 0:00:03]} O-O {[%emt 0:00:05]} 5. Bd3 {[%emt 0:00:02]} b6 {[%emt 0:00:06]} 6. Nf3 {[%emt 0:00:03]} Bb7 {[%emt 0:00:03]} 7. O-O {[%emt 0:00:04]} d5 {[%emt 0:00:21]} 8. cxd5 {[%emt 0:00:04]} Bxc3 {[%emt 0:00:03]} 9. bxc3 {[%emt 0:00:01]} exd5 {[%emt 0:00:03]} 10. a4 {[%emt 0:00:05]} c5 {[%emt 0:00:02]} 11. Ba3 {[%emt 0:00:07]} Nbd7 {[%emt 0:00:05]} 12. Rb1 {[%emt 0:00:10]} Re8 {[%emt 0:00:06]} 13. dxc5 {[%emt 0:00:05]} Rb8 {[%emt 0:00:14]} 14. cxb6 {[%emt 0:00:06]} axb6 {[%emt 0:00:08]} 15. Nd4 {[%emt 0:00:03]} Ne5 {[%emt 0:00:07]} 16. Be2 {[%emt 0:00:07]} Qc8 {[%emt 0:00:08]} 17. Bb5 {[%emt 0:00:12]} Bc6 {[%emt 0:00:10]} 18. Bd6 {[%emt 0:00:05]} Ra8 {[%emt 0:00:21]} 19. Bxe5 {[%emt 0:00:17]} Bxb5 {[%emt 0:00:02]} 20. Nxb5 {[%emt 0:00:23]} Rxe5 {[%emt 0:00:02]} 21. Rb4 {[%emt 0:00:29]} Re6 {[%emt 0:00:30]} 22. Qb3 {[%emt 0:00:09]} Qb7 {[%emt 0:00:15]} 23. Nd4 {[%emt 0:00:04]} Rd6 {[%emt 0:00:06]} 24. Rb1 {[%emt 0:00:07]} Rb8 {[%emt 0:00:04]} 25. a5 {[%emt 0:00:02]} Nd7 {[%emt 0:00:11]} 26. axb6 {[%emt 0:00:26]} Rxb6 {[%emt 0:00:09]} 27. Nf5 {[%emt 0:00:20]} Nc5 {[%emt 0:00:09]} 28. Rxb6 {[%emt 0:00:21]} Nxb3 {[%emt 0:00:08]} 29. Rxb7 {[%emt 0:00:02]} Rxb7 {[%emt 0:00:02]} 30. Rd1 {[%emt 0:00:19]} g6 {[%emt 0:00:08]} 31. Ng3 {[%emt 0:00:04]} Nc5 {[%emt 0:00:42]} 32. h3 {[%emt 0:00:02]} Ne4 {[%emt 0:00:00]} 33. Rxd5 {[%emt 0:00:05]} Rb1+ {[%emt 0:00:00]} 34. Kh2 {[%emt 0:00:01]} Nxf2 {[%emt 0:00:00]} 35. c4 {[%emt 0:00:04]} Ne4 {[%emt 0:00:00]} 36. Nxe4 Rb3 {[%emt 0:00:00]} 37. c5 {[%emt 0:00:07]} Rxe3 {[%emt 0:00:00]} 38. Ng3 {[%emt 0:00:02]} Rc3 {[%emt 0:00:00]} 39. Rd8+ {[%emt 0:00:02]} Kg7 {[%emt 0:00:00]} 40. Rc8 {[%emt 0:00:02]} h5 {[%emt 0:00:14]} 41. Rc7 {[%emt 0:00:01]} h4 {[%emt 0:00:02]} 42. Ne4 {[%emt 0:00:02]} Rc4 {[%emt 0:00:03]} 43. Nd6 {[%emt 0:00:02]} Rf4 {[%emt 0:00:07]} 44. c6 {[%emt 0:00:04]} Rf6 {[%emt 0:00:08]} 45. Rxf7+ {[%emt 0:00:04]} 1-0

[Event "Djerba Festival Blitz 2025"]
[Site "Djerba"]
[Date "2025.02.21"]
[Round "1.38"]
[White "Baba, Mouadh"]
[Black "Bensadi, Lotfi"]
[Result "0-1"]
[ECO "B90"]
[WhiteElo "1688"]
[BlackElo "1971"]
[PlyCount "86"]
[EventDate "2025.02.15"]
[EventType "swiss"]
[EventCountry "TUN"]
[TimeControl "180+3"]

1. e4 {[%emt 0:03:06]} c5 {[%emt 0:03:06]} 2. Nf3 d6 {[%emt 0:00:03]} 3. d4 cxd4 {[%emt 0:00:03]} 4. Nxd4 {[%emt 0:00:09]} Nf6 5. Nc3 {[%emt 0:00:03]} a6 {[%emt 0:00:06]} 6. Be3 {[%emt 0:00:03]} e5 7. Nb3 {[%emt 0:00:03]} Be7 {[%emt 0:00:06]} 8. f3 {[%emt 0:00:03]} Be6 {[%emt 0:00:03]} 9. Qd2 {[%emt 0:00:03]} Nbd7 {[%emt 0:00:03]} 10. g4 {[%emt 0:00:03]} b5 {[%emt 0:00:03]} 11. g5 {[%emt 0:00:03]} Nh5 {[%emt 0:00:03]} 12. Nd5 {[%emt 0:00:03]} Bxd5 {[%emt 0:00:03]} 13. Qxd5 {[%emt 0:00:03]} O-O {[%emt 0:00:03]} 14. Rg1 {[%emt 0:00:03]} Nb6 {[%emt 0:00:03]} 15. Qd2 {[%emt 0:00:03]} Rc8 {[%emt 0:00:03]} 16. O-O-O {[%emt 0:00:03]} Nc4 {[%emt 0:00:03]} 17. Bxc4 {[%emt 0:00:03]} bxc4 18. Na5 {[%emt 0:00:03]} Qc7 {[%emt 0:00:06]} 19. Qc3 {[%emt 0:00:03]} g6 {[%emt 0:00:03]} 20. b3 {[%emt 0:00:03]} cxb3 {[%emt 0:00:03]} 21. Qxc7 {[%emt 0:00:03]} bxa2 {[%emt 0:00:03]} 22. Kb2 {[%emt 0:00:03]} Rxc7 {[%emt 0:00:03]} 23. Kxa2 {[%emt 0:00:03]} Rxc2+ {[%emt 0:00:03]} 24. Kb3 {[%emt 0:00:03]} Rfc8 {[%emt 0:00:03]} 25. Rc1 {[%emt 0:00:03]} Rxc1 {[%emt 0:00:03]} 26. Rxc1 Rxc1 {[%emt 0:00:03]} 27. Bxc1 {[%emt 0:00:06]} Ng7 {[%emt 0:00:03]} 28. Ba3 {[%emt 0:00:03]} Ne6 {[%emt 0:00:03]} 29. Nc6 {[%emt 0:00:03]} Kf8 30. h4 {[%emt 0:00:03]} Ke8 31. Ka4 {[%emt 0:00:03]} Kd7 {[%emt 0:00:09]} 32. Nxe7 {[%emt 0:00:03]} Kxe7 {[%emt 0:00:03]} 33. Ka5 {[%emt 0:00:03]} Nd4 {[%emt 0:00:03]} 34. Kxa6 {[%emt 0:00:03]} Nxf3 {[%emt 0:00:03]} 35. Kb6 {[%emt 0:00:03]} Nd2 {[%emt 0:00:03]} 36. Bc1 {[%emt 0:00:03]} Nxe4 {[%emt 0:00:03]} 37. Kc6 {[%emt 0:00:03]} Ke6 {[%emt 0:00:03]} 38. Kb5 {[%emt 0:00:03]} d5 {[%emt 0:00:03]} 39. Kb4 d4 {[%emt 0:00:03]} 40. Kc4 {[%emt 0:00:06]} Nd6+ 41. Kd3 {[%emt 0:00:03]} Kd5 42. Ba3 {[%emt 0:00:03]} e4+ 43. Kd2 {[%emt 0:00:03]} Nc4+ 0-1

[Event "Djerba Festival Blitz 2025"]
[Site "Djerba"]
[Date "2025.02.21"]
[Round "1.39"]
[White "Charfeddine, Khaled"]
[Black "Khider, Amilia"]
[Result "1-0"]
[ECO "D43"]
[WhiteElo "1908"]
[BlackElo "1524"]
[PlyCount "58"]
[EventDate "2025.02.15"]
[EventType "swiss"]
[EventCountry "TUN"]
[TimeControl "180+3"]

1. d4 {[%emt 0:00:04]} d5 {[%emt 0:00:03]} 2. c4 {[%emt 0:00:02]} e6 {[%emt 0:00:02]} 3. Nc3 {[%emt 0:00:03]} Nf6 {[%emt 0:00:02]} 4. Nf3 {[%emt 0:00:04]} c6 {[%emt 0:00:07]} 5. Bf4 {[%emt 0:00:03]} Bd6 {[%emt 0:00:12]} 6. Bxd6 {[%emt 0:00:03]} Qxd6 {[%emt 0:00:03]} 7. c5 {[%emt 0:00:02]} Qd8 {[%emt 0:00:06]} 8. e3 {[%emt 0:00:02]} O-O {[%emt 0:00:06]} 9. Bd3 {[%emt 0:00:02]} b6 {[%emt 0:00:07]} 10. b4 {[%emt 0:00:02]} Nbd7 {[%emt 0:00:22]} 11. O-O {[%emt 0:00:03]} Re8 {[%emt 0:00:12]} 12. Qc2 {[%emt 0:00:24]} h6 {[%emt 0:00:44]} 13. a4 {[%emt 0:00:10]} e5 {[%emt 0:00:40]} 14. dxe5 {[%emt 0:00:03]} Nxe5 {[%emt 0:00:03]} 15. Nxe5 {[%emt 0:00:07]} Rxe5 {[%emt 0:00:04]} 16. Ne2 {[%emt 0:00:07]} Bb7 {[%emt 0:00:04]} 17. Nd4 {[%emt 0:00:03]} Qc7 {[%emt 0:00:15]} 18. Rac1 {[%emt 0:00:07]} Rh5 {[%emt 0:00:14]} 19. f4 {[%emt 0:00:09]} g5 {[%emt 0:00:17]} 20. Be2 {[%emt 0:00:11]} Rh4 {[%emt 0:00:13]} 21. g3 {[%emt 0:00:02]} Rh3 {[%emt 0:00:04]} 22. Kg2 {[%emt 0:00:14]} g4 {[%emt 0:00:03]} 23. Bd3 {[%emt 0:00:18]} Nh5 {[%emt 0:00:05]} 24. Bf5 {[%emt 0:00:13]} Nf6 {[%emt 0:00:03]} 25. Rce1 {[%emt 0:00:20]} Rh5 {[%emt 0:00:04]} 26. Bd3 {[%emt 0:00:20]} Re8 {[%emt 0:00:02]} 27. Nf5 {[%emt 0:00:25]} Ne4 {[%emt 0:00:04]} 28. Bxe4 {[%emt 0:00:03]} Rxe4 {[%emt 0:00:03]} 29. Nd6 {[%emt 0:00:02]} Qd7 {[%emt 0:00:06]} 1-0

[Event "Djerba Festival Blitz 2025"]
[Site "Djerba"]
[Date "2025.02.21"]
[Round "1.40"]
[White "Kammoun, Adam"]
[Black "Azreug, Lazhar"]
[Result "1-0"]
[ECO "A31"]
[WhiteElo "1571"]
[BlackElo "1793"]
[PlyCount "64"]
[EventDate "2025.02.15"]
[EventType "swiss"]
[EventCountry "TUN"]
[TimeControl "180+3"]

1. d4 {[%emt 0:00:04]} Nf6 {[%emt 0:00:03]} 2. c4 {[%emt 0:00:02]} c5 {[%emt 0:00:02]} 3. Nf3 {[%emt 0:00:04]} cxd4 {[%emt 0:00:04]} 4. Nxd4 {[%emt 0:00:02]} Nc6 {[%emt 0:00:02]} 5. Nxc6 {[%emt 0:00:04]} bxc6 {[%emt 0:00:02]} 6. Nc3 {[%emt 0:00:03]} g6 {[%emt 0:00:07]} 7. Bg5 {[%emt 0:00:05]} Bg7 {[%emt 0:00:02]} 8. e3 {[%emt 0:00:02]} O-O {[%emt 0:00:05]} 9. Be2 {[%emt 0:00:02]} Rb8 {[%emt 0:00:08]} 10. Qc2 {[%emt 0:00:11]} d5 {[%emt 0:00:16]} 11. cxd5 {[%emt 0:00:08]} cxd5 {[%emt 0:00:02]} 12. Rd1 {[%emt 0:00:03]} Bf5 {[%emt 0:00:21]} 13. Bd3 {[%emt 0:00:36]} Bxd3 {[%emt 0:00:21]} 14. Rxd3 {[%emt 0:00:02]} Qb6 {[%emt 0:00:35]} 15. b3 {[%emt 0:00:24]} e6 {[%emt 0:00:14]} 16. O-O {[%emt 0:00:05]} Rfc8 {[%emt 0:00:03]} 17. Qe2 {[%emt 0:00:08]} Qa6 {[%emt 0:00:12]} 18. Rc1 {[%emt 0:00:45]} Nd7 {[%emt 0:00:05]} 19. Rdd1 {[%emt 0:00:09]} Qa5 {[%emt 0:00:11]} 20. Na4 {[%emt 0:00:17]} Nb6 {[%emt 0:00:35]} 21. Nxb6 {[%emt 0:00:05]} axb6 {[%emt 0:00:02]} 22. Rc2 {[%emt 0:00:08]} Rc3 {[%emt 0:00:12]} 23. Rdc1 {[%emt 0:00:10]} Rbc8 {[%emt 0:00:04]} 24. h3 {[%emt 0:00:11]} b5 {[%emt 0:00:08]} 25. Rxc3 {[%emt 0:00:04]} Rxc3 {[%emt 0:00:05]} 26. e4 {[%emt 0:00:10]} dxe4 {[%emt 0:00:10]} 27. Qxe4 {[%emt 0:00:05]} Rxc1+ {[%emt 0:00:08]} 28. Bxc1 {[%emt 0:00:03]} Qxa2 {[%emt 0:00:03]} 29. Qd3 {[%emt 0:00:10]} Qa8 {[%emt 0:00:05]} 30. Qxb5 {[%emt 0:00:05]} Qa1 {[%emt 0:00:03]} 31. Qb8+ {[%emt 0:00:02]} Bf8 {[%emt 0:00:03]} 32. Qf4 {[%emt 0:00:07]} Ba3 {[%emt 0:00:06]} 1-0

[Event "Djerba Festival Blitz 2025"]
[Site "Djerba"]
[Date "2025.02.21"]
[Round "1.41"]
[White "Marceil, Jean"]
[Black "Doucet, Paul-Loup"]
[Result "1-0"]
[ECO "C18"]
[WhiteElo "1901"]
[BlackElo "1503"]
[PlyCount "115"]
[EventDate "2025.02.15"]
[EventType "swiss"]
[EventCountry "TUN"]
[TimeControl "180+3"]

1. d4 {[%emt 0:00:05]} d5 {[%emt 0:00:02]} 2. e4 {[%emt 0:00:02]} e6 {[%emt 0:00:14]} 3. Nc3 {[%emt 0:00:03]} Bb4 {[%emt 0:00:09]} 4. e5 {[%emt 0:00:02]} c5 {[%emt 0:00:03]} 5. a3 {[%emt 0:00:02]} Ba5 {[%emt 0:00:02]} 6. Qg4 {[%emt 0:00:08]} cxd4 {[%emt 0:00:40]} 7. b4 {[%emt 0:00:26]} g6 {[%emt 0:00:26]} 8. Qxd4 {[%emt 0:00:04]} Bb6 {[%emt 0:00:03]} 9. Qg4 {[%emt 0:00:10]} d4 {[%emt 0:00:02]} 10. Ne4 {[%emt 0:00:05]} Ne7 {[%emt 0:00:08]} 11. Bg5 {[%emt 0:00:03]} Nd7 {[%emt 0:00:08]} 12. Nd6+ {[%emt 0:00:04]} Kf8 {[%emt 0:00:03]} 13. Bh6+ {[%emt 0:00:04]} Kg8 {[%emt 0:00:06]} 14. Qf4 {[%emt 0:00:21]} Nf5 {[%emt 0:00:06]} 15. g4 {[%emt 0:00:04]} Nxd6 {[%emt 0:00:12]} 16. exd6 {[%emt 0:00:05]} e5 {[%emt 0:00:05]} 17. Qe4 {[%emt 0:00:06]} Nf6 {[%emt 0:00:04]} 18. Qf3 {[%emt 0:00:10]} Qxd6 {[%emt 0:00:07]} 19. O-O-O {[%emt 0:00:18]} Bxg4 {[%emt 0:00:04]} 20. Qg3 {[%emt 0:00:09]} Bxd1 {[%emt 0:00:04]} 21. Kxd1 {[%emt 0:00:03]} Rd8 {[%emt 0:00:14]} 22. Bc4 {[%emt 0:00:39]} Ne4 {[%emt 0:00:19]} 23. Qf3 {[%emt 0:00:04]} Nf6 {[%emt 0:00:07]} 24. Bg5 {[%emt 0:00:06]} e4 {[%emt 0:00:17]} 25. Qxf6 {[%emt 0:00:05]} Qxf6 {[%emt 0:00:02]} 26. Bxf6 {[%emt 0:00:02]} Rc8 {[%emt 0:00:03]} 27. Bb3 {[%emt 0:00:04]} d3 {[%emt 0:00:06]} 28. cxd3 {[%emt 0:00:06]} exd3 {[%emt 0:00:01]} 29. Nh3 {[%emt 0:00:03]} Rc3 {[%emt 0:00:03]} 30. Bxc3 {[%emt 0:00:04]} Kf8 {[%emt 0:00:07]} 31. Bxh8 {[%emt 0:00:02]} Kg8 {[%emt 0:00:01]} 32. Bc3 {[%emt 0:00:03]} Kf8 {[%emt 0:00:02]} 33. Ng5 {[%emt 0:00:03]} Kg8 {[%emt 0:00:01]} 34. Bxf7+ {[%emt 0:00:04]} Kf8 {[%emt 0:00:02]} 35. b5 {[%emt 0:00:03]} Ke7 {[%emt 0:00:03]} 36. Bb4+ {[%emt 0:00:02]} Kd7 {[%emt 0:00:02]} 37. Nxh7 {[%emt 0:00:04]} a6 {[%emt 0:00:03]} 38. bxa6 {[%emt 0:00:02]} bxa6 {[%emt 0:00:02]} 39. Bxg6 {[%emt 0:00:04]} Bxf2 {[%emt 0:00:04]} 40. Bxd3 {[%emt 0:00:02]} Kc6 {[%emt 0:00:05]} 41. Ke2 {[%emt 0:00:03]} Bb6 {[%emt 0:00:03]} 42. Rc1+ {[%emt 0:00:02]} Kb7 {[%emt 0:00:03]} 43. Be4+ {[%emt 0:00:03]} Ka7 {[%emt 0:00:03]} 44. Nf6 {[%emt 0:00:03]} a5 {[%emt 0:00:02]} 45. Bd6 {[%emt 0:00:03]} a4 {[%emt 0:00:02]} 46. Nd5 {[%emt 0:00:02]} Bd8 {[%emt 0:00:04]} 47. Bc5+ {[%emt 0:00:03]} Ka6 {[%emt 0:00:03]} 48. Nb4+ {[%emt 0:00:03]} Ka5 {[%emt 0:00:04]} 49. Ba7 {[%emt 0:00:09]} Bb6 {[%emt 0:00:03]} 50. Bxb6+ {[%emt 0:00:04]} Kxb6 {[%emt 0:00:02]} 51. Rc6+ {[%emt 0:00:02]} Ka7 {[%emt 0:00:02]} 52. h4 {[%emt 0:00:06]} Kb8 {[%emt 0:00:02]} 53. h5 {[%emt 0:00:02]} Ka7 {[%emt 0:00:01]} 54. h6 {[%emt 0:00:02]} Kb8 {[%emt 0:00:02]} 55. h7 {[%emt 0:00:02]} Ka7 {[%emt 0:00:04]} 56. h8=Q {[%emt 0:00:46]} Kb7 {[%emt 0:00:02]} 57. Qc8+ {[%emt 0:00:00]} Ka7 {[%emt 0:00:02]} 58. Ra6# {[%emt 0:00:00]} 1-0

[Event "Djerba Festival Blitz 2025"]
[Site "Djerba"]
[Date "2025.02.21"]
[Round "1.44"]
[White "Alkortabi, Ahmed B."]
[Black "Mendili, Jahed"]
[Result "0-1"]
[ECO "B50"]
[WhiteElo "1906"]
[BlackElo "1771"]
[PlyCount "32"]
[EventDate "2025.02.15"]
[EventType "swiss"]
[EventCountry "TUN"]
[TimeControl "180+3"]

1. e4 {[%emt 0:00:03]} c5 {[%emt 0:00:03]} 2. Nf3 {[%emt 0:00:02]} d6 {[%emt 0:00:02]} 3. d3 {[%emt 0:00:03]} Nf6 {[%emt 0:00:05]} 4. Be3 {[%emt 0:00:01]} e6 {[%emt 0:00:03]} 5. Be2 {[%emt 0:00:03]} Be7 {[%emt 0:00:03]} 6. c4 {[%emt 0:00:02]} O-O {[%emt 0:03:05]} 7. Nbd2 Nc6 {[%emt 0:00:00]} 8. Nb3 {[%emt 0:00:03]} a6 {[%emt 0:00:06]} 9. Qc2 b5 {[%emt 0:00:00]} 10. cxb5 {[%emt 0:00:04]} axb5 {[%emt 0:00:00]} 11. O-O-O {[%emt 0:03:15]} Nb4 {[%emt 0:00:00]} 12. Qb1 {[%emt 0:00:00]} Nxa2+ {[%emt 0:00:00]} 13. Kc2 {[%emt 0:00:00]} Nb4+ {[%emt 0:00:00]} 14. Kc1 {[%emt 0:00:00]} Qc7 {[%emt 0:00:00]} 15. d4 {[%emt 0:00:00]} cxd4+ {[%emt 0:00:00]} 16. Qc2 {[%emt 0:00:00]} Qxc2# {[%emt 0:00:00]} 0-1